bitfinex/quotes_SOLUSD_20241007
["timestamp","ask_amount","ask_price","bid_price","bid_amount"]
[1728306019985,6.8138,146.76,146.75,0.840983]
[1728306020319,26.8138,146.76,146.75,0.840983]
[1728306020799,50.590684,146.76,146.75,0.840983]
[1728306025393,50.841664,146.76,146.75,0.840983]
[1728306027287,57.94520411,146.76,146.75,0.840983]
[1728306031882,20.0,146.66,146.6,17.000983]
[1728306032087,20.0,146.66,146.62,12.45072078]
[1728306032390,20.0,146.7,146.61,12.45072078]
[1728306032602,22.8951,146.71,146.61,6.8207]
[1728306032603,20.0,146.65,146.61,6.8207]
[1728306033000,20.0,146.64,146.6,29.45170378]
[1728306033102,20.0,146.64,146.6,28.95170378]
[1728306033305,26.8195,146.64,146.6,28.95170378]
[1728306033776,6.819,146.65,146.61,6.8207]
[1728306033979,20.0,146.64,146.61,6.8207]
[1728306034207,20.0,146.64,146.62,12.45072078]
[1728306034497,6.8202,146.63,146.6,16.500983]
[1728306034698,20.0,146.62,146.6,16.500983]
[1728306035099,20.0,146.63,146.6,16.500983]
[1728306035293,20.0,146.62,146.6,16.500983]
[1728306038500,20.0,146.62,146.6,28.95170378]
[1728306038784,20.0,146.62,146.6,0.340983]
[1728306039112,6.82,146.63,146.6,0.340983]
[1728306039313,20.0,146.62,146.6,0.340983]
[1728306039610,20.0,146.65,146.6,0.340983]
[1728306039902,6.8203,146.62,146.6,0.340983]
[1728306040101,20.0,146.65,146.6,0.340983]
[1728306040293,20.0,146.62,146.6,0.340983]
[1728306040903,6.8204,146.62,146.6,0.340983]
[1728306041095,6.8204,146.62,146.6,12.79170378]
[1728306041294,20.0,146.65,146.6,12.79170378]
[1728306041493,20.0,146.62,146.6,12.79170378]
[1728306041903,7.09859744,146.66,146.61,12.45072078]
[1728306042121,26.8191,146.65,146.63,12.45072078]
[1728306042415,7.09859744,146.66,146.63,12.45072078]
[1728306042607,6.819,146.65,146.63,12.45072078]
[1728306043197,6.819,146.65,146.61,6.8204]
[1728306043513,6.819,146.65,146.62,12.45072078]
[1728306047613,6.8186,146.66,146.62,19.27092078]
[1728306047912,21.8891,146.75,146.65,0.12549]
[1728306048119,6.8166,146.7,146.67,12.45072078]
[1728306048694,6.8162,146.71,146.67,19.26872078]
[1728306049011,6.8167,146.7,146.67,12.45072078]
[1728306049518,6.8167,146.7,146.67,19.26872078]
[1728306049820,6.8167,146.7,146.67,12.45072078]
[1728306050316,20.0,146.69,146.67,12.45072078]
[1728306051419,6.8163,146.71,146.67,19.26862078]
[1728306051602,6.8158,146.72,146.68,6.8175]
[1728306051801,6.8158,146.72,146.63,0.12549]
[1728306051802,20.0,146.73,146.71,12.45072078]
[1728306052214,26.8155,146.73,146.71,12.45072078]
[1728306053492,26.8155,146.73,146.69,19.26772078]
[1728306053709,6.8157,146.72,146.69,12.45072078]
[1728306053893,20.0,146.71,146.69,12.45072078]
[1728306056405,6.8162,146.71,146.69,12.45072078]
[1728306057329,17.0382,146.73,146.67,16.3386]
[1728306057510,20.0,146.72,146.66,12.45072078]
[1728306058212,6.8175,146.68,146.66,12.45072078]
[1728306058603,6.8172,146.69,146.66,12.45072078]
[1728306059626,20.0,146.72,146.66,12.45072078]
[1728306059807,6.8168,146.7,146.66,19.26912078]
[1728306060124,6.8168,146.7,146.68,12.45072078]
[1728306060499,6.8168,146.7,146.66,19.26912078]
[1728306060714,6.8171,146.69,146.66,12.45072078]
[1728306060916,17.0406,146.71,146.65,12.45072078]
[1728306061132,20.0,146.7,146.63,28.00632078]
[1728306061435,6.8192,146.65,146.61,25.46202078]
[1728306061630,6.8192,146.65,146.61,19.27142078]
[1728306063120,17.0453,146.67,146.61,12.45072078]
[1728306063315,6.8199,146.63,146.61,12.45072078]
[1728306063601,20.0,146.66,146.61,12.45072078]
[1728306063817,6.8195,146.64,146.61,12.45072078]
[1728306066644,20.0,146.66,146.61,12.45072078]
[1728306066799,6.8203,146.62,146.6,0.340983]
[1728306067001,6.82,146.63,146.6,0.340983]
[1728306067208,23.776884,146.65,146.6,0.340983]
[1728306067411,6.8208,146.61,146.6,0.340983]
[1728306067729,20.0,146.64,146.6,0.340983]
[1728306067924,6.8205,146.62,146.6,0.340983]
[1728306068228,6.8208,146.61,146.6,0.340983]
[1728306068906,6.8205,146.62,146.6,0.340983]
[1728306069107,6.82,146.63,146.6,0.340983]
[1728306069507,20.0,146.66,146.6,0.340983]
[1728306069713,6.8197,146.64,146.61,12.45072078]
[1728306069910,20.0,146.63,146.61,12.45072078]
[1728306070317,26.8199,146.63,146.61,12.45072078]
[1728306070521,26.8199,146.63,146.6,0.340983]
[1728306071330,20.0,146.63,146.6,0.340983]
[1728306071521,6.8204,146.62,146.6,0.340983]
[1728306071831,37.0464,146.66,146.6,0.340983]
[1728306072029,6.8208,146.61,146.6,0.340983]
[1728306072607,23.776884,146.65,146.6,0.340983]
[1728306072608,20.0,146.64,146.6,0.340983]
[1728306072813,6.8204,146.62,146.6,0.340983]
[1728306073824,6.8208,146.61,146.6,0.340983]
[1728306075410,26.8208,146.61,146.6,0.340983]
[1728306077017,23.776884,146.65,146.6,0.340983]
[1728306077328,6.8204,146.62,146.6,0.340983]
[1728306078091,6.8204,146.62,146.6,12.79170378]
[1728306078411,6.8204,146.62,146.6,0.340983]
[1728306078910,7.10125277,146.66,146.61,12.45072078]
[1728306079141,32.6998,146.7,146.64,12.45072078]
[1728306079654,6.8181,146.67,146.64,12.45072078]
[1728306080707,7.09971378,146.7,146.66,12.45072078]
[1728306081006,17.0388,146.73,146.68,12.45072078]
[1728306081212,6.816,146.72,146.69,12.45072078]
[1728306081642,6.8163,146.71,146.67,19.26862078]
[1728306081836,6.8163,146.71,146.67,12.45072078]
[1728306082923,20.0,146.7,146.67,12.45072078]
[1728306084337,20.0,146.73,146.67,12.45072078]
[1728306084616,6.8171,146.69,146.65,19.26962078]
[1728306084773,20.0,146.71,146.63,15.233]
[1728306085135,6.818,146.67,146.63,6.8195]
[1728306085319,20.0,146.71,146.62,12.45072078]
[1728306085408,6.8188,146.66,146.62,19.27092078]
[1728306086422,20.0,146.66,146.63,6.8198]
[1728306086618,20.0,146.66,146.63,8.18369856]
[1728306086836,20.0,146.68,146.65,6.8186]
[1728306087031,20.0,146.68,146.65,26.37582444]
[1728306087741,20.0,146.68,146.6,16.306383]
[1728306087742,6.8182,146.67,146.62,0.12549]
[1728306088068,20.0,146.7,146.62,1.48929902]
[1728306088215,6.8176,146.68,146.64,6.8193]
[1728306092952,6.818,146.67,146.63,6.8197]
[1728306095824,6.8177,146.68,146.64,6.8193]
[1728306096022,6.8172,146.69,146.65,6.8189]
[1728306096227,20.0,146.68,146.65,6.8189]
[1728306098145,20.0,146.68,146.64,0.12549]
[1728306098348,7.09883962,146.71,146.66,6.8181]
[1728306098349,20.0,146.7,146.66,6.8181]
[1728306098522,20.0,146.7,146.67,6.8179]
[1728306098722,20.0,146.7,146.66,6.8181]
[1728306098723,26.8166,146.7,146.66,6.8181]
[1728306099329,26.8166,146.7,146.67,6.818]
[1728306099518,20.0,146.7,146.68,6.8172]
[1728306099733,6.8153,146.73,146.69,6.817]
[1728306099948,20.0,146.72,146.69,6.817]
[1728306101146,20.0,146.73,146.67,19.55722444]
[1728306101339,20.0,146.71,146.68,6.8174]
[1728306101600,20.0,146.71,146.69,6.817]
[1728306101840,20.0,146.72,146.69,6.817]
[1728306102729,20.0,146.73,146.7,1.36325226]
[1728306103025,20.0,146.74,146.71,6.8161]
[1728306103946,6.8145,146.75,146.71,6.8161]
[1728306103947,20.0,146.75,146.72,6.8156]
[1728306104140,7.09645096,146.76,146.73,6.815]
[1728306104440,16.3308,146.78,146.74,6.8143]
[1728306104441,6.813,146.78,146.74,6.8143]
[1728306105365,6.812,146.8,146.76,6.8137]
[1728306105544,6.8118,146.81,146.76,6.8137]
[1728306105845,34.0437,146.87,146.76,6.8137]
[1728306105846,6.8111,146.82,146.77,6.8133]
[1728306106055,6.8111,146.82,146.78,6.8128]
[1728306106840,20.0,146.81,146.77,26.37042444]
[1728306107049,20.0,146.81,146.78,6.8127]
[1728306109047,20.0,146.81,146.78,8.1750517]
[1728306109227,20.0,146.81,146.77,19.55722444]
[1728306109427,20.0,146.8,146.77,6.8132]
[1728306112437,26.812,146.8,146.75,19.55722444]
[1728306112637,26.812,146.8,146.76,6.8136]
[1728306116825,6.8116,146.81,146.77,8.17583449]
[1728306117030,6.8116,146.81,146.77,27.73305893]
[1728306117225,6.8116,146.81,146.78,1.3624006]
[1728306117847,20.0,146.81,146.78,1.3624006]
[1728306118151,6.8102,146.84,146.8,6.8119]
[1728306118746,6.8098,146.85,146.81,8.1737685]
[1728306118943,6.8098,146.85,146.81,6.8115]
[1728306119451,20.0,146.84,146.8,6.93729]
[1728306119855,20.0,146.84,146.81,6.8115]
[1728306120247,6.8098,146.85,146.81,6.8115]
[1728306121859,20.0,146.84,146.81,6.8115]
[1728306123154,20.0,146.87,146.78,0.12549]
[1728306123359,40.800384,146.86,146.77,19.55722444]
[1728306123534,6.8116,146.81,146.76,16.6108]
[1728306123741,6.8116,146.81,146.78,6.8129]
[1728306123943,6.8116,146.81,146.77,6.8132]
[1728306125947,6.8113,146.82,146.78,6.93819]
[1728306126148,6.8113,146.82,146.79,6.8124]
[1728306127940,40.800384,146.86,146.79,6.8124]
[1728306127941,6.8107,146.83,146.79,6.8124]
[1728306128341,20.0,146.82,146.79,6.8124]
[1728306131068,20.0,146.85,146.77,19.55722444]
[1728306131367,6.8113,146.82,146.78,6.8128]
[1728306131568,20.0,146.83,146.76,16.6108]
[1728306131871,6.8116,146.81,146.77,6.8129]
[1728306132047,20.0,146.83,146.76,16.6108]
[1728306132241,20.0,146.85,146.77,19.68271444]
[1728306132762,6.8104,146.84,146.8,6.8116]
[1728306132947,26.8099,146.85,146.81,6.8113]
[1728306133146,22.285,146.88,146.79,19.55722444]
[1728306133350,6.8094,146.86,146.82,6.811]
[1728306134453,6.8088,146.87,146.83,6.8105]
[1728306135452,20.0,146.86,146.83,6.8105]
[1728306136051,6.8084,146.88,146.84,8.17190226]
[1728306136257,20.0,146.87,146.84,6.81]
[1728306138258,26.8079,146.89,146.85,8.1714181]
[1728306138461,26.8079,146.89,146.85,6.8096]
[1728306139248,20.0,146.89,146.86,6.8091]
[1728306140656,7.10655272,146.92,146.88,6.8082]
[1728306140847,6.5791,146.95,146.88,6.8082]
[1728306141058,6.5791,146.95,146.87,0.25098]
[1728306141257,6.8061,146.93,146.89,6.8077]
[1728306142362,6.8055,146.94,146.9,6.8072]
[1728306143768,20.0,146.93,146.9,6.8072]
[1728306144749,20.0,146.95,146.88,0.12549]
[1728306144951,20.0,146.92,146.89,6.8076]
[1728306145172,26.8065,146.92,146.88,6.93359]
[1728306145473,6.8079,146.89,146.86,15.059]
[1728306145672,17.0151,146.93,146.83,6.1785]
[1728306145673,20.0,146.92,146.83,6.1785]
[1728306145867,6.809,146.87,146.83,12.989]
[1728306146173,6.809,146.87,146.83,6.8105]
[1728306147070,6.8084,146.88,146.84,6.8101]
[1728306147272,20.0,146.93,146.86,19.55722444]
[1728306147482,6.807,146.91,146.87,6.8083]
[1728306147775,20.0,146.9,146.87,6.8083]
[1728306148257,6.807,146.91,146.87,6.8083]
[1728306148652,20.0,146.91,146.88,6.8082]
[1728306150266,20.0,146.92,146.89,6.8077]
[1728306150456,26.8065,146.92,146.88,26.36532444]
[1728306151860,6.806,146.93,146.89,6.93309]
[1728306152066,26.8066,146.92,146.88,19.55722444]
[1728306152457,26.8066,146.92,146.88,26.36522444]
[1728306152769,26.8066,146.92,146.88,6.808]
[1728306160486,6.8061,146.93,146.89,6.8077]
[1728306160779,6.8064,146.92,146.89,6.8077]
[1728306162175,6.8062,146.93,146.89,6.8077]
[1728306162386,20.0,146.92,146.89,6.8077]
[1728306165984,37.0128,146.95,146.88,6.93369]
[1728306166185,6.8069,146.91,146.88,6.93369]
[1728306166686,6.8069,146.91,146.87,21.896]
[1728306170398,6.8069,146.91,146.88,19.28187483]
[1728306170686,6.8065,146.92,146.88,19.28187483]
[1728306173492,6.8065,146.92,146.89,6.8076]
[1728306174642,6.8065,146.92,146.88,12.47367483]
[1728306174798,6.8065,146.92,146.88,19.28177483]
[1728306177491,6.8065,146.92,146.89,6.8077]
[1728306179179,6.8061,146.93,146.89,6.8077]
[1728306179384,20.0,146.92,146.89,6.8077]
[1728306180484,20.0,146.92,146.87,15.0874]
[1728306180687,6.8068,146.92,146.88,6.8079]
[1728306180943,6.8068,146.92,146.88,19.28157483]
[1728306181297,20.0,146.92,146.83,15.958]
[1728306181481,6.8087,146.87,146.83,15.958]
[1728306181814,6.8087,146.87,146.82,12.47367483]
[1728306182101,6.8087,146.87,146.77,6.3628]
[1728306182102,43.776884,146.87,146.77,34.79447483]
[1728306182284,20.0,146.83,146.79,6.8121]
[1728306182692,26.8107,146.83,146.79,6.8121]
[1728306183073,6.8111,146.82,146.78,6.8128]
[1728306183276,6.8111,146.82,146.77,35.24467483]
[1728306183511,6.8115,146.81,146.77,6.813]
[1728306183693,6.8115,146.81,146.76,6.8137]
[1728306186727,6.812,146.8,146.76,6.8137]
[1728306187571,6.8116,146.81,146.76,6.8137]
[1728306187887,0.12549,146.84,146.77,6.8133]
[1728306187888,6.8111,146.82,146.77,6.8133]
[1728306188096,6.8111,146.82,146.78,6.8128]
[1728306188296,20.0,146.83,146.75,19.52367247]
[1728306188487,6.8107,146.83,146.79,6.8124]
[1728306189003,20.0,146.82,146.79,6.8124]
[1728306190505,20.0,146.82,146.78,6.8127]
[1728306190506,26.8111,146.82,146.78,6.8127]
[1728306191410,6.8124,146.8,146.75,6.8142]
[1728306191722,6.8129,146.78,146.74,6.8147]
[1728306192010,20.0,146.81,146.74,19.52367247]
[1728306192213,26.8115,146.81,146.77,6.813]
[1728306192525,13.92192622,146.82,146.77,6.813]
[1728306192701,7.11052622,146.82,146.77,6.813]
[1728306192889,32.62999,146.85,146.77,6.813]
[1728306192890,6.8115,146.81,146.77,6.813]
[1728306193405,6.8106,146.83,146.79,6.8124]
[1728306193715,26.8102,146.84,146.79,6.8124]
[1728306194788,6.8106,146.83,146.79,6.8124]
[1728306195602,6.8113,146.82,146.78,6.8128]
[1728306195796,6.8113,146.82,146.71,15.5587]
[1728306195797,20.0,146.84,146.71,15.5587]
[1728306196108,6.8116,146.81,146.72,19.52367247]
[1728306196316,6.8116,146.81,146.77,6.8132]
[1728306199000,6.811,146.82,146.78,6.8127]
[1728306199401,17.0256,146.84,146.77,6.8132]
[1728306199602,6.8115,146.81,146.77,6.8132]
[1728306202916,17.0256,146.84,146.75,0.25098]
[1728306203126,43.776884,146.83,146.72,63.42604647]
[1728306203619,43.776884,146.83,146.73,0.12549]
[1728306203815,6.8124,146.79,146.74,6.8147]
[1728306204393,43.776884,146.83,146.74,6.8147]
[1728306204594,6.8129,146.78,146.74,6.8147]
[1728306205106,24.13848078,146.82,146.73,0.12549]
[1728306205297,6.8134,146.77,146.73,6.94059]
[1728306205507,24.13848078,146.82,146.71,15.5587]
[1728306205508,6.8138,146.76,146.71,15.5587]
[1728306205835,6.8135,146.77,146.73,6.8151]
[1728306206831,6.8138,146.76,146.72,6.94099]
[1728306207346,15.7791,146.79,146.7,19.52367247]
[1728306207410,60.809384,146.78,146.69,6.8169]
[1728306207733,6.8152,146.73,146.69,6.8169]
[1728306208330,6.8149,146.74,146.69,6.8169]
[1728306209014,20.0,146.74,146.71,6.8161]
[1728306210448,20.0,146.74,146.68,19.52367247]
[1728306210732,6.8158,146.72,146.68,6.8174]
[1728306210912,6.8167,146.7,146.66,6.8184]
[1728306211110,6.8167,146.7,146.65,6.8185]
[1728306211534,6.8172,146.69,146.65,6.8185]
[1728306211839,6.8172,146.69,146.64,6.8193]
[1728306212038,6.8179,146.68,146.63,6.8198]
[1728306212533,6.8172,146.69,146.65,6.8189]
[1728306212938,20.0,146.69,146.65,6.8189]
[1728306213124,20.0,146.69,146.66,6.8184]
[1728306213728,15.2084,146.74,146.67,6.8179]
[1728306214045,6.816,146.72,146.67,6.8179]
[1728306214429,20.0,146.71,146.67,6.8179]
[1728306218139,20.0,146.71,146.65,19.52367247]
[1728306218439,20.0,146.71,146.68,6.8175]
[1728306220324,20.0,146.71,146.67,6.8178]
[1728306220622,20.0,146.71,146.66,0.25098]
[1728306220940,20.0,146.71,146.68,6.8174]
[1728306222143,15.2084,146.74,146.69,6.8168]
[1728306222447,7.10905432,146.75,146.71,6.816]
[1728306222448,6.8144,146.75,146.71,6.816]
[1728306222619,13.2991,146.76,146.72,6.8155]
[1728306222826,6.8153,146.73,146.69,6.817]
[1728306223126,30.62313613,146.76,146.67,15.8371]
[1728306223529,6.8143,146.75,146.71,6.816]
[1728306223723,20.0,146.74,146.68,20.88690227]
[1728306223936,6.8148,146.74,146.7,6.8165]
[1728306226746,6.8148,146.74,146.71,6.8161]
[1728306226942,20.0,146.75,146.72,6.8157]
[1728306231351,20.0,146.77,146.69,0.12549]
[1728306231651,6.8148,146.74,146.71,6.8161]
[1728306231748,6.8148,146.74,146.69,0.12549]
[1728306232638,6.8148,146.74,146.71,6.8161]
[1728306232945,6.8144,146.75,146.71,6.8161]
[1728306233129,6.8144,146.75,146.72,6.8156]
[1728306234352,20.0,146.75,146.72,6.8156]
[1728306234532,23.09545334,146.78,146.71,0.12549]
[1728306234734,6.8136,146.77,146.73,6.8152]
[1728306235100,6.8136,146.77,146.71,1.48844423]
[1728306235101,20.0,146.77,146.75,6.8142]
[1728306235249,20.0,146.77,146.76,6.8138]
[1728306235645,20.0,146.77,146.75,6.8138]
[1728306238488,20.0,146.77,146.73,0.12549]
[1728306239134,20.0,146.77,146.74,6.8146]
[1728306239546,26.8134,146.77,146.73,6.815]
[1728306239741,6.8141,146.76,146.72,6.8155]
[1728306240750,6.8146,146.75,146.69,20.0]
[1728306240959,6.8146,146.75,146.71,6.8158]
[1728306241170,20.0,146.75,146.6,0.340983]
[1728306241386,20.0,146.73,146.64,19.52367247]
[1728306241742,20.0,146.73,146.68,6.8172]
[1728306241933,6.8157,146.72,146.68,6.8172]
[1728306242757,6.8153,146.73,146.69,6.817]
[1728306243535,6.8147,146.74,146.7,6.8164]
[1728306243950,20.0,146.73,146.7,6.8164]
[1728306244362,20.0,146.73,146.69,6.8168]
[1728306244673,20.0,146.73,146.66,19.52367247]
[1728306244674,20.0,146.73,146.7,6.8166]
[1728306245338,20.0,146.75,146.69,0.12549]
[1728306245546,20.0,146.75,146.72,6.8156]
[1728306245756,6.8144,146.75,146.69,0.25098]
[1728306248059,20.0,146.78,146.72,6.8156]
[1728306248060,6.814,146.76,146.72,6.8156]
[1728306248265,6.8137,146.77,146.73,6.8151]
[1728306248559,6.8137,146.77,146.69,24.027864]
[1728306248560,26.8138,146.76,146.72,6.8153]
[1728306250467,20.0,146.78,146.75,6.8141]
[1728306251255,28.6236,146.8,146.76,6.8135]
[1728306251591,6.8121,146.8,146.76,6.8135]
[1728306252849,20.0,146.82,146.78,6.8127]
[1728306253047,13.91175473,146.83,146.78,6.8127]
[1728306253261,6.811,146.83,146.79,6.8124]
[1728306254141,22.4304,146.84,146.8,6.8119]
[1728306254349,6.8097,146.85,146.81,6.8114]
[1728306254554,20.0,146.84,146.81,6.8114]
[1728306254870,20.0,146.85,146.82,6.8109]
[1728306255202,6.8093,146.86,146.82,6.8109]
[1728306255561,22.1178,146.88,146.78,35.64287247]
[1728306255688,22.1178,146.88,146.79,0.12549]
[1728306255982,6.811,146.82,146.78,6.8124]
[1728306256194,6.811,146.82,146.77,6.813]
[1728306256879,6.811,146.82,146.74,41.31247247]
[1728306257079,6.811,146.82,146.78,6.8127]
[1728306257685,20.0,146.82,146.79,6.8124]
[1728306260552,6.8104,146.84,146.8,6.8119]
[1728306260950,20.0,146.85,146.76,19.52367247]
[1728306261156,26.8097,146.85,146.81,6.8114]
[1728306261352,20.0,146.87,146.78,19.52367247]
[1728306261555,20.0,146.85,146.82,6.811]
[1728306261768,6.81,146.85,146.8,6.8115]
[1728306262072,6.8103,146.84,146.8,6.8115]
[1728306262450,39.1389,146.88,146.79,6.8124]
[1728306262451,6.8109,146.83,146.79,6.8124]
[1728306262667,39.1389,146.88,146.78,6.8128]
[1728306262668,6.8114,146.82,146.78,6.8128]
[1728306262974,6.8107,146.83,146.79,6.8121]
[1728306263362,20.0,146.82,146.79,6.8121]
[1728306266981,6.8107,146.83,146.79,6.8121]
[1728306267378,20.0,146.82,146.79,6.8121]
[1728306268690,20.0,146.83,146.76,1.36241299]
[1728306268867,26.8098,146.85,146.82,6.811]
[1728306269064,26.8098,146.85,146.77,24.027864]
[1728306269266,26.8098,146.85,146.81,6.8113]
[1728306270501,20.0,146.85,146.78,12.48973639]
[1728306270684,6.8106,146.83,146.8,6.8118]
[1728306270986,6.8106,146.83,146.74,21.7888]
[1728306270987,20.0,146.85,146.75,20.0]
[1728306271191,6.8116,146.81,146.77,6.8132]
[1728306271374,6.811,146.82,146.79,6.8124]
[1728306272465,6.8107,146.83,146.79,6.8124]
[1728306273876,20.0,146.85,146.8,6.8116]
[1728306274095,20.0,146.85,146.79,0.12549]
[1728306274274,20.0,146.83,146.75,20.0]
[1728306274473,6.8113,146.82,146.78,6.8126]
[1728306277493,6.8108,146.83,146.79,6.8121]
[1728306277701,6.8104,146.84,146.8,6.8119]
[1728306277891,20.0,146.83,146.8,6.8119]
[1728306278200,20.0,146.83,146.81,6.8115]
[1728306278995,20.0,146.84,146.81,6.8115]
[1728306279393,6.8102,146.84,146.8,6.8118]
[1728306279786,20.0,146.83,146.8,6.8118]
[1728306280675,26.8098,146.85,146.82,6.811]
[1728306280881,20.0,146.85,146.82,6.811]
[1728306284604,20.0,146.85,146.8,0.25098]
[1728306284787,20.0,146.87,146.83,6.8105]
[1728306284980,26.8088,146.87,146.83,6.8105]
[1728306285383,26.8083,146.88,146.84,6.8099]
[1728306285587,6.8083,146.88,146.84,6.8099]
[1728306287004,20.0,146.87,146.84,6.8099]
[1728306288185,20.0,146.87,146.82,0.12549]
[1728306289086,6.8092,146.86,146.82,6.93639]
[1728306290083,20.0,146.88,146.81,12.48973639]
[1728306290408,6.8098,146.85,146.81,6.8114]
[1728306298221,6.8104,146.84,146.8,6.93729]
[1728306298339,6.8106,146.83,146.8,6.93729]
[1728306298680,6.8103,146.84,146.8,6.93729]
[1728306299087,37.0211,146.88,146.79,22.6107]
[1728306299088,17.0232,146.86,146.79,22.6107]
[1728306299330,17.0232,146.86,146.79,15.7984]
[1728306299616,6.8119,146.8,146.76,6.8135]
[1728306300408,6.8124,146.79,146.75,29.3716]
[1728306300713,6.8129,146.78,146.75,16.0436]
[1728306301491,6.8126,146.79,146.75,16.0436]
[1728306301996,6.8126,146.79,146.75,22.8578]
[1728306302190,6.8104,146.84,146.78,0.12549]
[1728306302491,6.8097,146.85,146.79,19.30213639]
[1728306302916,6.8097,146.85,146.8,6.8117]
[1728306303294,6.8102,146.84,146.8,6.8117]
[1728306303518,6.8102,146.84,146.79,12.48973639]
[1728306303519,6.8102,146.84,146.79,19.30203639]
[1728306305412,6.8102,146.84,146.79,12.48973639]
[1728306305617,6.8102,146.84,146.8,6.8119]
[1728306306601,20.0,146.84,146.8,6.8119]
[1728306308714,6.8094,146.86,146.81,8.17360584]
[1728306308902,6.8094,146.86,146.81,20.66334223]
[1728306309302,6.8094,146.86,146.82,6.8109]
[1728306309607,26.8088,146.87,146.82,6.8109]
[1728306309994,6.8092,146.86,146.82,6.8109]
[1728306314108,6.8097,146.85,146.81,22.8436]
[1728306314712,20.0,146.87,146.81,16.0323]
[1728306314916,6.8104,146.84,146.81,16.0323]
[1728306315125,6.8104,146.84,146.8,6.8119]
[1728306316604,6.8098,146.85,146.81,6.8115]
[1728306317519,6.8093,146.86,146.81,6.8115]
[1728306317773,20.0,146.85,146.82,6.8108]
[1728306321906,26.8096,146.85,146.81,6.93669]
[1728306322523,6.8095,146.86,146.81,6.93669]
[1728306322822,20.0,146.85,146.81,6.93669]
[1728306324431,20.0,146.85,146.81,0.12549]
[1728306324637,20.0,146.85,146.82,6.811]
[1728306325130,47.13983633,146.97,146.83,1.36197186]
[1728306325131,21.6847,146.91,146.83,1.36197186]
[1728306325337,6.8086,146.88,146.84,6.8097]
[1728306327319,60.795284,146.9,146.81,0.12549]
[1728306327623,6.8094,146.86,146.81,0.12549]
[1728306327814,6.8088,146.87,146.83,6.8105]
[1728306331307,20.0,146.9,146.81,12.61522639]
[1728306331542,6.8079,146.89,146.85,6.8095]
[1728306331820,26.8075,146.9,146.86,6.8091]
[1728306332025,13.90426758,146.91,146.87,6.8084]
[1728306332229,6.807,146.91,146.87,6.8084]
[1728306333235,17.016,146.93,146.83,34.74583639]
[1728306333423,6.8074,146.9,146.86,6.809]
[1728306333614,6.8074,146.9,146.83,34.74583639]
[1728306333615,6.8085,146.88,146.83,22.9042]
[1728306333834,6.8085,146.88,146.84,0.12549]
[1728306334325,6.8085,146.88,146.84,6.93529]
[1728306335314,26.8075,146.9,146.86,6.8091]
[1728306336034,6.8068,146.91,146.87,6.8085]
[1728306336230,20.0,146.92,146.86,0.25098]
[1728306336437,6.8069,146.91,146.87,6.8085]
[1728306336640,6.8064,146.92,146.88,6.8081]
[1728306338716,20.0,146.92,146.89,6.8077]
[1728306340020,7.09814916,146.96,146.88,28.37903639]
[1728306340232,6.8046,146.96,146.92,6.8063]
[1728306340435,7.3045,146.97,146.92,6.8062]
[1728306341333,7.3045,146.97,146.93,6.8059]
[1728306342043,0.5,146.97,146.94,8.16638971]
[1728306342257,0.5,146.97,146.93,12.48973639]
[1728306342415,0.5,146.97,146.94,0.12549]
[1728306342611,0.5,146.97,146.94,6.8053]